Cogmind - Beta 15 @@@ ROGUE MODE // 2025.05.22 @ 21:08:52 Player: morimori Result: Destroyed by P-80 Master with Gamma Rifle Performance ------------- Evolutions (8) 4000 Regions Visited (25) 5000 Robots Destroyed (147) 735 Value Destroyed (5256) 5256 Prototype IDs (42) 840 Alien Tech Used (7) 1400 Bonus (2630) 2630 TOTAL SCORE: 19861 Bonus ------- Follower Combat Kills 11 Met Zhirov 300 MAIN.C Attacked Warlord 500 Used Core Reset Matrix 3000 Friendly Fire -1181 Cogmind --------- Core Integrity 0/1450 Matter 277/300 Energy 99/100 System Corruption 4% Temperature Cool (0) Movement Core (50) Location -2/Research Parts ------- > --- POWER (2) -------- (None) > --- PROPULSION (6) --- (None) > --- UTILITY (12) ----- Experimental Signal Interpreter Experimental Targeting Computer Advanced Hacking Suite Advanced Hacking Suite Advanced Hacking Suite Advanced Hacking Suite > --- WEAPON (4) ------- (None) > --- INVENTORY (5) ---- Vortex Chain Reactor Experimental Targeting Computer Core Stripper Peak State ------------ > --- POWER ------------ Micro Antimatter Reactor Quantum Reactor > --- PROPULSION ------- Improved Heavy Treads Improved Heavy Treads Improved Heavy Siege Treads > --- UTILITY ---------- Advanced Coolant Injector Huge Storage Unit Experimental Signal Interpreter Experimental Targeting Computer Phase Redirector Advanced Hacking Suite Advanced Hacking Suite Advanced Hacking Suite Advanced Hacking Suite Advanced Hacking Suite Advanced System Shield Authchip [Device] > --- WEAPON ----------- Compact HERF Cannon Matter Neutralizer Core Stripper > --- INVENTORY -------- Micro Antimatter Reactor Vortex Chain Reactor Biometal Medium Treads Biometal Medium Treads Advanced Coolant Injector Experimental Matter Compressor Experimental Sensor Array Experimental Targeting Computer Precision Energy Filter Precision Energy Filter Graphene Brace Advanced Hardlight Generator Advanced Point Defense System Authchip [Device] Authchip [Device] Authchip [Device] Authchip [Device] Authchip [Processor] Core Reset Matrix Subatomic Replicator Gamma Rifle Heavy Machine Gun Great Maul [Rating: 197] Favorites ----------- Power Micro Fission Core Engine Improved Ion Engine Power Core Micro Fission Core Reactor Micro Antimatter Reactor Propulsion Antigrav System Treads Improved Heavy Treads Wheel Wheel Hover Unit Antigrav System Utility Advanced Hacking Suite Device Experimental Sensor Array Storage High-capacity Storage Unit Processor Advanced Signal Interpreter Hackware Advanced Hacking Suite Protection Improved Utility Shielding Artifact Phase Redirector Weapon Phase Cannon Energy Gun Gamma Rifle Energy Cannon Phase Cannon Ballistic Gun Heavy Assault Rifle Ballistic Cannon Heavy Assault Cannon Launcher Smartbomb Launcher Impact Weapon Core Stripper Slashing Weapon Scythe Piercing Weapon Lance Build | -11 -10 -10 -9 -8 -7 -7 -7 -6 -6 -6 -5 -5 -5 -5 -4 -4 -4 -4 -4 -4 -4 -3 -3 -3 -2 ------- Run | Yrd Mat Min Mat Mat Fac Low Low Fac Was Fac Fac Upp Upp War Pro Fac Was Fac Upp Upp Zhi Pro Res Qua Res Slots Evolved 16 | . . . 2 2 2 . . 2 . . 2 . . . . 2 . . . . . . 2 . 2 Power 1 | . . . . . . . . 1 . . . . . . . . . . . . . . . . . Propulsion 4 | . . . . 2 2 . . . . . . . . . . . . . . . . . . . . Utility 9 | . . . 2 . . . . 1 . . 2 . . . . 2 . . . . . . . . 2 Weapon 2 | . . . . . . . . . . . . . . . . . . . . . . . 2 . . Parts Attached 168 | 8 4 2 22 16 10 5 3 11 . 3 8 1 . 7 . 11 3 6 . . 3 1 14 21 9 Power 21 | 1 1 . 2 1 1 1 . 2 . . . . . . . . . . . . 1 1 3 6 1 Engine 4 | 1 1 . 2 . . . . . . . . . . . . . . . . . . . . . . Core 5 | . . . . 1 1 1 . 2 . . . . . . . . . . . . . . . . . Reactor 12 | . . . . . . . . . . . . . . . . . . . . . 1 1 3 6 1 Propulsion 47 | 2 1 . 6 3 7 1 3 . . 1 1 . . 3 . 4 1 1 . . . . 5 5 3 Treads 8 | . . . . . . . . . . . . . . . . . . . . . . . . 5 3 Leg . | . . . . . . . . . . . . . . . . . . . . . . . . . . Wheel 11 | 2 1 . 5 3 . . . . . . . . . . . . . . . . . . . . . Hover 28 | . . . 1 . 7 1 3 . . 1 1 . . 3 . 4 1 1 . . . . 5 . . Flight . | . . . . . . . . . . . . . . . . . . . . . . . . . . Utility 64 | 2 2 . 9 6 2 1 . 8 . 2 5 1 . 3 . 7 1 4 . . 2 . 1 5 3 Device 15 | 1 1 . 1 3 . . . 1 . 1 . 1 . 1 . 1 1 . . . . . . 1 2 Storage 7 | 1 1 . 1 . . 1 . . . . . . . 1 . . . 1 . . 1 . . . . Processor 4 | . . . . 1 . . . 1 . . . . . . . . . 1 . . . . . 1 . Hackware 25 | . . . . 1 1 . . 6 . 1 4 . . 1 . 6 . 2 . . . . 1 1 1 Protection 12 | . . . 7 1 1 . . . . . 1 . . . . . . . . . 1 . . 1 . Artifact 1 | . . . . . . . . . . . . . . . . . . . . . . . . 1 . Weapon 36 | 3 . 2 5 6 . 2 . 1 . . 2 . . 1 . . 1 1 . . . . 5 5 2 Energy Gun 7 | 1 . . 1 . . . . . . . . . . 1 . . . 1 . . . . 1 2 . Energy Cannon 5 | . . . . . . 1 . 1 . . . . . . . . 1 . . . . . . 1 1 Ballistic Gun 10 | 2 . . 4 3 . . . . . . . . . . . . . . . . . . . 1 . Ballistic Cannon 2 | . . . . 2 . . . . . . . . . . . . . . . . . . . . . Launcher 3 | . . 2 . . . . . . . . 1 . . . . . . . . . . . . . . Special Weapon . | . . . . . . . . . . . . . . . . . . . . . . . . . . Impact Weapon 4 | . . . . 1 . 1 . . . . . . . . . . . . . . . . . 1 1 Slashing Weapon 4 | . . . . . . . . . . . . . . . . . . . . . . . 4 . . Piercing Weapon 1 | . . . . . . . . . . . 1 . . . . . . . . . . . . . . Special Melee Weapon . | . . . . . . . . . . . . . . . . . . . . . . . . . . Unidentified Prototypes 14 | . . . 1 . . 1 . . . . . . . 4 . . 1 . . . 4 . . 3 . Corrupted Parts 1 | . . . . . . . . . . . . . . . . . . . . . . . . 1 . System Corruption 8 | . . . . . . . . . . . . . . . . . . . . . . . . 8 . Parts Lost 29 | . . . 5 4 . . . . . . . . . . . . . . . . . 1 6 1 12 Power 2 | . . . . . . . . . . . . . . . . . . . . . . . 1 1 . Propulsion 8 | . . . 1 3 . . . . . . . . . . . . . . . . . . 1 . 3 Utility 12 | . . . 3 1 . . . . . . . . . . . . . . . . . . 2 . 6 Weapon 7 | . . . 1 . . . . . . . . . . . . . . . . . . 1 2 . 3 Highest Loss Streak 7 | . . . 2 3 . . . . . . . . . . . . . . . . . 1 4 1 7 To Critical Strikes . | . . . . . . . . . . . . . . . . . . . . . . . . . . Average Backups 18 | 2 11 14 20 24 13 14 15 18 19 18 18 19 19 18 18 17 17 17 18 18 18 18 23 23 21 Power 1 | 1 2 2 1 2 2 2 2 2 2 2 1 1 1 . 1 1 1 1 1 1 1 1 1 1 2 Propulsion 2 | . 2 2 7 7 1 1 2 4 4 2 1 1 1 . . . . . . . . . 1 1 1 Utility 11 | . 1 4 5 9 7 8 8 8 9 10 12 14 14 14 14 12 13 14 15 15 15 16 15 15 13 Weapon 3 | . 4 6 5 5 3 2 3 3 4 4 2 2 3 2 3 3 3 2 2 2 . . 2 3 2 Tool/Special . | . . . . . . . . . . . . . . . . . . . . . . . . . . Unused Backups 61 | 1 3 3 12 2 7 1 1 1 . . 5 1 1 4 . 4 . . . . . . . 2 13 Power 12 | . 2 1 . 1 2 1 . . . . 1 . . 1 . . . . . . . . . 1 2 Propulsion 9 | 1 . . 4 1 . . 1 . . . . . . . . 2 . . . . . . . . . Utility 22 | . . 1 3 . 3 . . 1 . . 1 1 . 1 . 2 . . . . . . . . 9 Weapon 16 | . 1 1 5 . 2 . . . . . 3 . 1 1 . . . . . . . . . 1 1 Tool/Special 2 | . . . . . . . . . . . . . . 1 . . . . . . . . . . 1 Average Slot Usage (%) 90 | . 100 100 85 88 90 96 91 92 93 88 93 94 93 94 91 94 99 99 99 98 91 93 87 83 80 Engine 1 | . 14 14 11 1 . . . . . . . . . . . . . . . . . . . . . Core 6 | . . . . 7 7 7 7 11 12 12 11 11 11 11 11 10 10 10 10 10 7 2 . . . Reactor 2 | . . . . . . . . . . . . . . . . . . . . . 2 7 8 8 7 Treads 2 | . . . . . . . . . . . . . . . . . . . . . . . . 14 12 Wheel 3 | . 28 28 21 26 . . . . . . . . . . . . . . . . . . . . . Hover 21 | . . . . . 45 44 42 37 37 32 27 27 27 27 27 27 30 30 30 29 30 30 22 . . Device 7 | . 14 14 10 11 7 6 6 11 12 11 10 11 10 6 5 5 4 4 4 2 4 5 3 3 6 Storage 6 | . 14 14 11 9 7 7 7 6 6 6 5 5 5 5 5 5 5 5 5 5 5 5 4 4 3 Processor 4 | . . . . . 7 7 7 6 6 6 5 5 5 5 5 5 5 5 5 5 5 5 4 4 8 Hackware 18 | . . . . 4 6 7 7 11 12 12 21 22 22 25 27 31 35 35 35 35 35 35 29 29 27 Protection 1 | . . . 9 9 . 2 7 . . . . . . . . . . . . 2 . . . . . Energy Gun 1 | . . . 1 . . . . . . . . . . . . . . 1 8 3 . 2 2 4 . Energy Cannon 3 | . . . . . . 4 1 5 6 6 4 5 4 5 2 4 9 7 1 3 1 . . 1 4 Ballistic Gun 2 | . 28 6 18 12 . . . . . . . . . . . . . . . . . . . . 3 Slashing Weapon 1 | . . . . . . . . . . . . . . . . . . . . . . . 8 5 . Piercing Weapon 1 | . . . . . . . . . . . 4 5 4 5 2 4 . . . . . . . . . Peak Build Rating 197 | 8 10 13 22 34 50 60 66 84 84 91 111 110 112 119 118 135 138 141 141 138 140 140 153 180 197 Average Rating 97 | 5 8 11 15 26 44 53 57 78 84 87 108 109 110 114 117 128 133 137 139 135 127 133 142 154 176 On Entrance 90 | . 7 10 13 22 34 45 58 66 84 84 86 107 110 111 115 118 133 135 138 138 138 140 137 144 177 Naked Turns . | . . . . . . . . . . . . . . . . . . . . . . . . . . Heaviest Build 146 | 14 31 33 110 117 40 62 62 62 60 61 63 63 63 63 62 63 66 67 67 67 73 85 131 137 146 Greatest Support 225 | 26 26 20 26 46 47 51 61 61 61 64 64 64 64 66 66 70 69 95 69 69 69 69 73 225 225 Greatest Overweight (x) 19 | . 1 1 5 9 . 1 1 19 . . 1 . . . . 1 . . . 1 1 1 1 1 1 Average Overweight (x) . | . . 1 2 2 . . . . . . . . . . . . . . . . . . 1 . . Largest Inventory Capacity 25 | 8 15 15 25 25 25 20 20 20 20 20 20 20 20 20 20 20 20 20 20 20 20 20 25 25 25 Average Capacity 20 | 7 14 15 20 25 15 16 20 20 20 20 20 20 20 20 20 20 20 20 20 20 20 20 24 25 24 Most Carried 25 | 8 15 15 25 25 25 17 20 20 20 20 20 20 20 20 20 20 20 20 20 20 20 20 25 25 25 Average Carried 19 | 3 11 14 20 24 14 15 15 19 20 19 19 19 19 19 19 18 19 19 19 19 19 19 24 24 22 Final Capacity 25 | 8 15 15 25 25 15 20 20 20 20 20 20 20 20 20 20 20 20 20 20 20 20 20 25 25 5 Final Carried 25 | 6 15 15 24 24 15 15 20 20 20 20 20 20 20 20 20 20 20 20 20 20 20 19 25 25 5 Class Distribution -------------------- 28% | Wizard-Mutant 23% | Mutant 20% | Scavenger-Mutant 14% | Hacker-Mutant 11% | Wizard-Sprinter Dominant Class ---------------- Mutant | -10/Materials Mutant | -10/Mines Scavenger-Mutant | -9/Materials Scavenger-Mutant | -8/Materials Mutant | -7/Factory Mutant | -7/Lower Caves Mutant | -7/Lower Caves Scavenger-Mutant | -6/Factory Scavenger-Mutant | -6/Waste Scavenger-Mutant | -6/Factory Hacker-Mutant | -5/Factory Hacker-Mutant | -5/Upper Caves Hacker-Mutant | -5/Upper Caves Wizard-Mutant | -5/Warlord Wizard-Mutant | -4/Proximity Caves Wizard-Sprinter | -4/Factory Wizard-Sprinter | -4/Waste Wizard-Sprinter | -4/Factory Wizard-Sprinter | -4/Upper Caves Wizard-Sprinter | -4/Upper Caves Wizard-Mutant | -4/Zhirov Wizard-Mutant | -3/Proximity Caves Wizard-Mutant | -3/Research Wizard-Mutant | -3/Quarantine Wizard-Mutant | -2/Research Resources | -11 -10 -10 -9 -8 -7 -7 -7 -6 -6 -6 -5 -5 -5 -5 -4 -4 -4 -4 -4 -4 -4 -3 -3 -3 -2 ----------- Run | Yrd Mat Min Mat Mat Fac Low Low Fac Was Fac Fac Upp Upp War Pro Fac Was Fac Upp Upp Zhi Pro Res Qua Res Matter Collected 5891 | 336 . . 647 598 366 176 90 109 . 101 293 20 322 640 56 238 50 183 170 242 89 20 157 675 313 Remotely . | . . . . . . . . . . . . . . . . . . . . . . . . . . Salvage Created 6680 | 138 . . 658 598 386 327 203 68 . 49 537 . 177 . 54 304 . 350 163 275 472 . 348 833 740 Parts 305 | 11 . . 50 35 6 5 9 4 . 8 21 . 10 . 6 14 . 29 4 5 5 . 22 33 28 Haulers Intercepted 1 | . . . . 1 . . . . . . . . . . . . . . . . . . . . . Recyclers Shooed 4 | . . . 1 1 . . . . . . 2 . . . . . . . . . . . . . . Parts Field Recycled . | . . . . . . . . . . . . . . . . . . . . . . . . . . Retrieved Matter . | . . . . . . . . . . . . . . . . . . . . . . . . . . Parts Self-Destructed 19 | . . . . . . . . . . . . . 6 . 4 . . . 2 4 3 . . . . Prevented . | . . . . . . . . . . . . . . . . . . . . . . . . . . Kills | -11 -10 -10 -9 -8 -7 -7 -7 -6 -6 -6 -5 -5 -5 -5 -4 -4 -4 -4 -4 -4 -4 -3 -3 -3 -2 ------- Run | Yrd Mat Min Mat Mat Fac Low Low Fac Was Fac Fac Upp Upp War Pro Fac Was Fac Upp Upp Zhi Pro Res Qua Res Combat Hostiles Destroyed 87 | . . . 11 9 . . . . . . 9 . 8 . 6 . . 9 . 8 . . 6 11 10 Melee 4 | . . . . . . . . . . . . . . . . . . . . . . . 4 . . Guns 29 | . . . 11 7 . . . . . . . . . . . . . 1 . . . . 2 5 3 Cannons 8 | . . . . 2 . . . . . . . . . . . . . . . . . . . 3 3 AOE 39 | . . . . . . . . . . . 9 . 8 . 6 . . 8 . 8 . . . . . Classes Destroyed 16 | 3 . . 4 3 . 1 1 . . . 2 . . . . . . 1 . . . . . 1 . Worker 10 | 1 . . 2 2 . . . . . . 2 . . . . . . 2 . . . . . . 1 Builder 8 | . . . . 1 1 . . . . 1 . . . . . . . 3 . . . . . 1 1 Tunneler 4 | 3 . . . 1 . . . . . . . . . . . . . . . . . . . . . Hauler 1 | . . . . 1 . . . . . . . . . . . . . . . . . . . . . Recycler 11 | 1 . . 1 . 4 . . . . . 3 . . . . 2 . . . . . . . . . Mechanic 1 | . . . . . . . . . . . . . . . . . . . . . . . . 1 . Operator 3 | . . . 1 1 1 . . . . . . . . . . . . . . . . . . . . Drone 1 | . . . . . . . . . . . 1 . . . . . . . . . . . . . . Watcher 19 | . . . 3 1 3 . . 2 . 1 1 . . . . 1 . 3 . . . . 1 3 . Swarmer 33 | . . . . . . . . . . . 8 . 4 . 6 . . 6 . 5 . . . 4 . Grunt 25 | . . . 6 7 . . . . . . . . 4 . . . . . . 2 . . . 2 4 Brawler 1 | . . . . 1 . . . . . . . . . . . . . . . . . . . . . Researcher 1 | . . . . . . 1 . . . . . . . . . . . . . . . . . . . Sentry 7 | . . . 5 1 . . . . . . . . . . . . . . . 1 . . . . . Programmer 20 | . . . . . . . . . . . . . . . . . . 3 . . . . 6 5 6 Ranger 3 | . . . . . . . 3 . . . . . . . . . . . . . . . . . . Best Kill Streak 13 | 4 . . 2 4 2 . . 1 . 1 6 . 4 . 5 1 . 13 . 5 . . 3 7 6 Combat Bots Only 8 | . . . 2 3 . . . . . . 5 . 4 . 5 . . 8 . 5 . . 3 4 5 Max Kills in Single Turn 7 | 1 . . 1 1 1 1 1 1 . 1 4 . 3 . 4 1 . 7 . 2 . . 1 1 2 Gunslinging . | . . . . . . . . . . . . . . . . . . . . . . . . . . Exploded 5 | . . . . . . . . . . . 4 . 3 . 4 . . 5 . 2 . . . . . Melee 1 | . . . . . . . . . . . . . . . . . . . . . . . 1 . . Uniques/NPCs Destroyed . | . . . . . . . . . . . . . . . . . . . . . . . . . . Combat | -11 -10 -10 -9 -8 -7 -7 -7 -6 -6 -6 -5 -5 -5 -5 -4 -4 -4 -4 -4 -4 -4 -3 -3 -3 -2 -------- Run | Yrd Mat Min Mat Mat Fac Low Low Fac Was Fac Fac Upp Upp War Pro Fac Was Fac Upp Upp Zhi Pro Res Qua Res Hostile Shots Fired 633 | . . . 94 57 . . . . . 6 4 2 . 29 . . . 27 . 9 . 8 98 85 214 Missed 184 | . . . 19 21 . . . . . 1 3 1 . 14 . . . 12 . 3 . 4 23 21 62 Hits 449 | . . . 75 36 . . . . . 5 1 1 . 15 . . . 15 . 6 . 4 75 64 152 Melee 13 | . . . . 12 . . . . . . . . . . . . . . . . . . . . 1 Projectile 436 | . . . 75 24 . . . . . 5 1 1 . 15 . . . 15 . 6 . 4 75 64 151 Critical Strikes 27 | . . . . 1 . . . . . . . . . 1 . . . 1 . . . . 6 8 10 Part Disruptions 3 | . . . . . . . . . . . . . . . . . . . . . . . 1 2 . Damage Taken 9309 | . . . 988 661 . . . . . 102 23 23 . 195 . . . 400 . 87 . 87 1746 1441 3556 Core 2315 | . . . 203 126 . . . . . 18 . . . 58 . . . 104 . . . . 397 70 1339 Absorbed by Shields 254 | . . . . . . . . . . . . . . 38 . . . . . . . . . . 216 Reduced by Siege Mode 362 | . . . . . . . . . . . . . . . . . . . . . . . . 123 239 Redirected to Core 284 | . . . . . . . . . . . . . . . . . . . . . . . . . 284 Redirected to Shielding 212 | . . . . . . . . . . 9 . . . 4 . . . 17 . 13 . . 124 45 . Regen/Repaired (Parts) 161 | . . . 15 . . . . . . . . . . 19 . 86 . . . . . . 41 . . Core Remaining (%) 85 | 100 . 100 49 77 . . 100 . . 97 . . . . 94 . . . . . . 90 . 64 . Volleys Fired 733 | 14 . . 71 65 12 13 39 60 . 40 59 . 25 1 22 25 . 99 4 18 16 2 9 70 69 Largest 4 | 2 . . 2 2 1 1 1 1 . 1 1 . 1 1 1 1 . 2 1 1 1 1 1 4 3 Hottest 330 | 40 . . 88 65 50 65 65 85 . 85 85 . 85 40 85 85 . 179 85 85 85 40 40 330 199 Shots Fired 960 | 28 . . 142 115 12 13 39 60 . 40 59 . 25 1 22 25 . 109 6 18 16 3 10 119 98 Gun 407 | 28 . . 142 97 . . . . . . . . . 1 . . . 11 1 . . 3 10 76 38 Cannon 518 | . . . . 18 12 13 39 60 . 40 55 . 13 . 18 25 . 91 4 11 16 . . 43 60 Launcher 35 | . . . . . . . . . . . 4 . 12 . 4 . . 7 1 7 . . . . . Special . | . . . . . . . . . . . . . . . . . . . . . . . . . . Kinetic 339 | 28 . . 129 115 12 4 . . . . . . . . . . . . . . . . . 17 34 Thermal 478 | . . . 13 . . 9 39 60 . 40 55 . 13 . 18 25 . 88 4 11 16 . . 43 44 Explosive 35 | . . . . . . . . . . . 4 . 12 . 4 . . 7 1 7 . . . . . Electromagnetic 83 | . . . . . . . . . . . . . . . . . . 3 . . . . 1 59 20 Entropic 25 | . . . . . . . . . . . . . . 1 . . . 11 1 . . 3 9 . . Robot Hit Streak 16 | 8 . . 10 16 1 3 8 3 . 5 1 . . . . 1 . 7 9 7 8 . 16 8 14 Robot Miss Streak 17 | 2 . . 3 17 1 2 5 3 . 1 2 . . . . 2 . 2 . 2 1 . . 9 3 Penetration Max 1 | . . . . 1 . . . . . . . . . . . . . . . . . . . . . Secondary Targets 1 | . . . 1 . . . . . . . . . . . . . . . . . . . . . . Max Gunslinging Chain 1 | . . . 1 . . . . . . . . . . . . . . . . . . . . . . Shots Hit Robots 446 | 20 . . 94 70 14 11 26 7 . 4 7 . . . . 4 . 14 2 7 15 . 44 58 49 Core Hits 234 | 8 . . 35 37 2 3 8 2 . 3 14 . 13 . 9 4 . 18 3 17 6 . 13 22 17 Critical Kills 4 | . . . . . . . . . . . . . . . . . . . . . 1 . . 1 2 Critical Parts Destroyed 8 | . . . 1 1 4 1 . . . . . . . . . . . 1 . . . . . . . Critical Strikes 26 | . . . 2 1 4 2 . . . . . . . . . . . 1 . . 1 . 9 2 4 Burn 1 | . . . 1 . . . . . . . . . . . . . . . . . . . . . . Meltdown 4 | . . . . . . . . . . . . . . . . . . . . . 1 . . 1 2 Destroy 2 | . . . 1 1 . . . . . . . . . . . . . . . . . . . . . Blast 1 | . . . . . . 1 . . . . . . . . . . . . . . . . . . . Corrupt 3 | . . . . . . . . . . . . . . . . . . . . . . . . 1 2 Smash 5 | . . . . . 4 1 . . . . . . . . . . . . . . . . . . . Sever 9 | . . . . . . . . . . . . . . . . . . . . . . . 9 . . Detonate 1 | . . . . . . . . . . . . . . . . . . 1 . . . . . . . Melee Attacks 209 | . . . . 2 26 8 . 2 . . 31 . . 7 1 5 . . . . . . 74 43 10 Kinetic 3 | . . . . . . . . . . . . . . . . . . . . . . . . 1 2 Impact 50 | . . . . 2 26 8 . 2 . . 4 . . . . . . . . . . . . . 8 Slashing 116 | . . . . . . . . . . . . . . . . . . . . . . . 74 42 . Piercing 40 | . . . . . . . . . . . 27 . . 7 1 5 . . . . . . . . . Sneak Attacks 15 | . . . . . 5 . . . . . 5 . . . . 2 . . . . . . . 2 1 Combat Hostiles . | . . . . . . . . . . . . . . . . . . . . . . . . . . Follow-up Attacks 19 | . . . . . . . . . . . . . . . . . . . . . . . 19 . . Damage Inflicted 17027 | 217 . . 1310 1170 1063 690 781 256 . 162 1207 . 792 . 670 267 . 1638 128 1049 375 . 1534 1961 1757 Guns 5093 | 217 . . 1298 959 . . . . . . . . . . . . . 251 . . . . 413 1225 730 Cannons 3725 | . . . . 211 50 120 781 215 . 126 30 . . . . 94 . 235 61 155 375 . . 612 660 Explosions 4569 | . . . . . . . . . . . 784 . 792 . 670 . . 1152 67 894 . . . . 210 Melee 3572 | . . . . . 1013 570 . 41 . . 393 . . . . 173 . . . . . . 1121 124 137 Ramming 68 | . . . 12 . . . . . . 36 . . . . . . . . . . . . . . 20 Kinetic 3829 | 217 . . 1159 1170 50 40 . . . . . . . . . . . . . . . . . 384 809 Thermal 3192 | . . . 139 . . 80 781 215 . 126 30 . . . . 94 . 203 61 155 375 . . 612 321 Explosive 4461 | . . . . . . . . . . . 784 . 792 . 670 . . 1044 67 894 . . . . 210 Electromagnetic 1378 | . . . . . . . . . . . . . . . . . . 140 . . . . . 841 397 Impact 1624 | . . . . . 1013 570 . 41 . . . . . . . . . . . . . . . . . Slashing 1245 | . . . . . . . . . . . . . . . . . . . . . . . 1121 124 . Piercing 566 | . . . . . . . . . . . 393 . . . . 173 . . . . . . . . . Entropic 664 | . . . . . . . . . . . . . . . . . . 251 . . . . 413 . . Highest Corruption 36 | . . . 4 10 . . . . 6 6 . . . . . . . 4 4 4 4 4 19 36 16 Average Corruption 11 | . . . 4 7 . . . . 6 6 . . . . . . . 3 4 4 4 4 11 21 10 Corruption Purged . | . . . . . . . . . . . . . . . . . . . . . . . . . . Corruption Blocked . | . . . . . . . . . . . . . . . . . . . . . . . . . . Effects 170 | . . . 1 15 . . . . 3 20 . . . . . . . 5 6 3 3 7 11 76 20 Message Errors 35 | . . . . 5 . . . . . 5 . . . . . . . 1 2 1 2 . 2 13 4 Matter Fused 37 | . . . 1 4 . . . . 2 3 . . . . . . . 2 . . 1 1 2 18 3 Heat Flow Errors 23 | . . . . 1 . . . . . 4 . . . . . . . 1 . . . 3 2 11 1 Energy Discharges 18 | . . . . 1 . . . . 1 2 . . . . . . . 1 . . . 1 1 9 2 Parts Rejected 4 | . . . . 1 . . . . . . . . . . . . . . . . . . . 2 1 Parts Fused 1 | . . . . . . . . . . . . . . . . . . . . . . . . 1 . Data Loss (minor) 16 | . . . . . . . . . . 2 . . . . . . . . . . . 1 . 8 5 Data Loss (major) 8 | . . . . . . . . . . . . . . . . . . . 1 2 . . 2 2 1 Misfires 11 | . . . . 2 . . . . . 1 . . . . . . . . 2 . . 1 1 3 1 Alerts 6 | . . . . . . . . . . 2 . . . . . . . . 1 . . . 1 2 . Misdirections 3 | . . . . . . . . . . . . . . . . . . . . . . . . 1 2 Weapon Failures 8 | . . . . 1 . . . . . 1 . . . . . . . . . . . . . 6 . Overload Shots . | . . . . . . . . . . . . . . . . . . . . . . . . . . Overflow Damage 1563 | . . . . . 601 356 33 12 . 5 98 . 90 . 19 . . 88 . 108 8 . 14 24 107 Projectiles 81 | . . . . . 15 1 33 12 . . . . . . . . . 2 . 10 8 . . . . Explosions 315 | . . . . . . . . . . . 22 . 90 . 19 . . 86 . 98 . . . . . Melee 1167 | . . . . . 586 355 . . . 5 76 . . . . . . . . . . . 14 24 107 Knockbacks 19 | . . . . 7 5 3 . 1 . 2 . . . . . . . . . . . . . . 1 Impact 10 | . . . . . 4 2 . 1 . 2 . . . . . . . . . . . . . . 1 Kinetic 9 | . . . . 7 1 1 . . . . . . . . . . . . . . . . . . . Secondary . | . . . . . . . . . . . . . . . . . . . . . . . . . . Self-Inflicted Damage 122 | . . . 6 . . . . . . 17 . . . . . . . . . . . . . . 99 Shots 1 | . . . . . . . . . . . . . . . . . . . . . . . . . 1 Rammed 5 | . . . 1 . . . . . . 2 . . . . . . . . . . . . . . 2 Targets Rammed 5 | . . . 1 . . . . . . 2 . . . . . . . . . . . . . . 2 Kicked . | . . . . . . . . . . . . . . . . . . . . . . . . . . Crushed . | . . . . . . . . . . . . . . . . . . . . . . . . . . Highest Temperature 387 | . . . 165 334 16 66 144 310 25 356 99 . 45 70 334 328 . 276 43 187 238 232 95 387 198 Average Temperature 76 | . . . 64 162 7 18 56 71 12 60 24 . 17 22 122 98 . 71 23 61 121 92 41 109 76 Received Heat Transfer 966 | . . . 447 216 . . . . . 18 9 9 . 4 . . . 48 . . . 12 9 87 107 Effects 19 | . . . . 5 . . . 3 . . . . . . 3 . . 4 . . 1 . . 3 . Shutdowns 3 | . . . . . . . . . . . . . . . 1 . . . . . . . . 2 . Energy Bleed 3 | . . . . 1 . . . . . . . . . . . . . 1 . . 1 . . . . Interference 11 | . . . . 2 . . . 3 . . . . . . 2 . . 3 . . . . . 1 . Matter Decay 1 | . . . . 1 . . . . . . . . . . . . . . . . . . . . . Short Circuit 1 | . . . . 1 . . . . . . . . . . . . . . . . . . . . . Siege Activations 6 | . . . . . . . . . . . . . . . . . . . . . . . . 2 4 Total Turns 118 | . . . . . . . . . . . . . . . . . . . . . . . . 51 67 Longest Duration 43 | . . . . . . . . . . . . . . . . . . . . . . . . 43 32 Martial Activations . | . . . . . . . . . . . . . . . . . . . . . . . . . . Shielding Activations . | . . . . . . . . . . . . . . . . . . . . . . . . . . Robots Disrupted . | . . . . . . . . . . . . . . . . . . . . . . . . . . Combat Hostiles . | . . . . . . . . . . . . . . . . . . . . . . . . . . Robots Corrupted 11 | . . . . . 5 2 . . . . . . . . . . . . . . . . . 2 2 Combat Hostiles 6 | . . . . . . 2 . . . . . . . . . . . . . . . . . 2 2 Parts Fried 26 | . . . . . 10 1 . . . . . . . . . . . 2 . . . . . 8 5 Impact Corruptions 31 | . . . . . 18 12 . . . 1 . . . . . . . . . . . . . . . Robots Melted 4 | . . . . . . . . . . . . . . . . . . . . . 1 . . 1 2 Combat Hostiles 4 | . . . . . . . . . . . . . . . . . . . . . 1 . . 1 2 Parts Melted 11 | . . . . . . . 1 . . . . . . . . . . . . . . . . 1 9 Heat Transferred 3867 | . . . 395 . . 148 1073 259 . 148 37 . . . . 111 . 161 74 185 499 . . 518 259 Parts Sabotaged 1 | . . . . . . . . . . . . . . . . . . . . . . . . . 1 Parts Stolen . | . . . . . . . . . . . . . . . . . . . . . . . . . . Parts Stripped . | . . . . . . . . . . . . . . . . . . . . . . . . . . Power Chain Reactions . | . . . . . . . . . . . . . . . . . . . . . . . . . . Alert | -11 -10 -10 -9 -8 -7 -7 -7 -6 -6 -6 -5 -5 -5 -5 -4 -4 -4 -4 -4 -4 -4 -3 -3 -3 -2 ------- Run | Yrd Mat Min Mat Mat Fac Low Low Fac Was Fac Fac Upp Upp War Pro Fac Was Fac Upp Upp Zhi Pro Res Qua Res Maximum Alert Level 1 | . . . . . . . . . . . . . . . . . . 1 . . . . . 1 1 Low Security (%) 95 | 100 100 100 100 100 100 . . 100 100 100 100 . . . . 100 100 97 . . . . 100 77 91 Level 1 4 | . . . . . . . . . . . . . . . . . . 2 . . . . . 22 8 Level 2 . | . . . . . . . . . . . . . . . . . . . . . . . . . . Level 3 . | . . . . . . . . . . . . . . . . . . . . . . . . . . Level 4 . | . . . . . . . . . . . . . . . . . . . . . . . . . . Level 5 . | . . . . . . . . . . . . . . . . . . . . . . . . . . High Security . | . . . . . . . . . . . . . . . . . . . . . . . . . . Max Security . | . . . . . . . . . . . . . . . . . . . . . . . . . . Peak Influence 328 | 10 11 . 110 102 36 . . 30 . 44 197 . . . . 44 6 328 . . . . 76 284 220 Initial 153 | . . . . . . . . . . . 9 . . . . 44 6 . . . . . . . 153 Average 35 | 2 . . 40 29 6 . . 2 . 9 74 . . . . 7 1 45 . . . . 15 67 57 Influence Increases 4707 | 25 14 . 400 272 194 60 . 150 . 248 622 15 180 25 130 76 . 731 65 190 15 60 197 567 471 Destroy 0b10 Robot/C 1740 | . . . 220 180 . . . . . . 160 . 160 20 120 . . 180 . 160 . . 120 220 200 Destroy 0b10 Robot/NC 335 | 25 . . 35 35 50 15 . 10 . 10 35 . . . . 15 . 40 5 5 15 . 5 25 10 Destroy Leader 320 | . . . 76 34 6 . . 4 . 2 22 . 20 . 10 2 . 36 . 10 . . 32 36 30 Allied During Kill 5 | . . . . . . . . . . . . . . 5 . . . . . . . . . . . Successful Hack 328 | . 14 . 9 19 58 . . 53 . 82 39 . . . . 4 . 8 . . . . 24 . 18 Disable Machine 270 | . . . . . 15 . . 45 . 15 45 . . . . . . 15 . . . . . 120 15 Destroy Structure 854 | . . . . 4 20 . . 38 . 34 216 . . . . 40 . 242 . . . . 16 76 168 Partial Spotted 135 | . . . . . 45 . . . . . 30 . . . . 15 . 30 . . . . . . 15 Lose Combat Pursuer 720 | . . . 60 . . 45 . . . 105 75 15 . . . . . 180 60 15 . 60 . 90 15 Influence Decreases 4707 | 25 14 . 400 272 194 60 . 150 . 227 456 202 174 31 60 128 18 567 142 137 155 60 195 297 743 Entered New Map 466 | . . . . . . . . . . . 12 70 . 6 . 26 12 . 62 17 140 . . 2 119 Time Decay 3249 | 25 14 . 350 232 194 60 . 150 . 196 294 132 174 25 60 102 6 253 80 120 15 60 175 275 257 Lost Part 230 | . . . 50 40 . . . . . . . . . . . . . . . . . . 20 10 110 Lost Ally 137 | . . . . . . . . . . 10 . . . . . . . 10 . . . . . 10 107 Purge Threat 625 | . . . . . . . . . . 21 150 . . . . . . 304 . . . . . . 150 Squads Dispatched 59 | . . . 2 4 10 . . 6 . 5 8 . . . . 4 . 5 . . . . 1 6 8 Investigation 23 | . . . . . 5 . . 4 . 2 5 . . . . 2 . 2 . . . . . 2 1 Extermination 22 | . . . . . 3 . . 2 . 1 3 . . . . 2 . 2 . . . . 1 4 4 Reinforcement 11 | . . . 2 2 1 . . . . 2 . . . . . . . 1 . . . . . . 3 Assault . | . . . . . . . . . . . . . . . . . . . . . . . . . . Garrison 3 | . . . . 2 1 . . . . . . . . . . . . . . . . . . . . Intercept . | . . . . . . . . . . . . . . . . . . . . . . . . . . Searches Triggered . | . . . . . . . . . . . . . . . . . . . . . . . . . . Construction Impeded 2 | . . . . 1 . . . . . . . . . . . . . . . . . . . . 1 Haulers Reinforced . | . . . . . . . . . . . . . . . . . . . . . . . . . . Active Scanning Responses . | . . . . . . . . . . . . . . . . . . . . . . . . . . Cargo Convoy Interrupts 1 | . . . . . . . . . . . . . . . . . . . . . . . . . 1 Stealth | -11 -10 -10 -9 -8 -7 -7 -7 -6 -6 -6 -5 -5 -5 -5 -4 -4 -4 -4 -4 -4 -4 -3 -3 -3 -2 --------- Run | Yrd Mat Min Mat Mat Fac Low Low Fac Was Fac Fac Upp Upp War Pro Fac Was Fac Upp Upp Zhi Pro Res Qua Res Distress Signals 15 | . . . 2 . . . . . . . 1 . 1 3 . . . 3 . . . . . 4 1 Communications Jammed . | . . . . . . . . . . . . . . . . . . . . . . . . . . Distress Signals . | . . . . . . . . . . . . . . . . . . . . . . . . . . Times Spotted 195 | . 1 . 29 13 8 2 . 7 6 16 10 1 1 11 1 2 . 19 . 4 . 4 8 17 35 Peak Tracking Total 14 | . 1 . 6 4 3 3 . 2 6 5 5 1 4 13 2 2 . 7 4 4 . 4 3 6 14 Tactical Retreats 28 | . . . 3 . . 2 . . . 5 3 1 . . . . . 7 2 1 . 1 . 2 1 Traps | -11 -10 -10 -9 -8 -7 -7 -7 -6 -6 -6 -5 -5 -5 -5 -4 -4 -4 -4 -4 -4 -4 -3 -3 -3 -2 ------- Run | Yrd Mat Min Mat Mat Fac Low Low Fac Was Fac Fac Upp Upp War Pro Fac Was Fac Upp Upp Zhi Pro Res Qua Res Traps Triggered 9 | . . . . 2 1 . . 1 . . . . . . . 2 . 1 . . . . . 2 . Indirectly . | . . . . . . . . . . . . . . . . . . . . . . . . . . Trap Hack Attempts . | . . . . . . . . . . . . . . . . . . . . . . . . . . Triggered . | . . . . . . . . . . . . . . . . . . . . . . . . . . Disarmed . | . . . . . . . . . . . . . . . . . . . . . . . . . . Reprogrammed . | . . . . . . . . . . . . . . . . . . . . . . . . . . Reused . | . . . . . . . . . . . . . . . . . . . . . . . . . . Traps Extracted . | . . . . . . . . . . . . . . . . . . . . . . . . . . Installed . | . . . . . . . . . . . . . . . . . . . . . . . . . . Triggered . | . . . . . . . . . . . . . . . . . . . . . . . . . . Machines | -11 -10 -10 -9 -8 -7 -7 -7 -6 -6 -6 -5 -5 -5 -5 -4 -4 -4 -4 -4 -4 -4 -3 -3 -3 -2 ---------- Run | Yrd Mat Min Mat Mat Fac Low Low Fac Was Fac Fac Upp Upp War Pro Fac Was Fac Upp Upp Zhi Pro Res Qua Res Machines Disabled 20 | . . . . . 1 . . 3 . 1 3 . 1 1 . . . 1 . . . . . 8 1 Max in Single Turn 3 | . . . . . 1 . . 1 . 1 3 . 1 1 . . . 1 . . . . . 1 1 Garrison Access 8 | . . . . . . . . 2 . 1 1 . . . . . . 2 . . . . 1 1 . Machines Repaired . | . . . . . . . . . . . . . . . . . . . . . . . . . . Machines Dismantled . | . . . . . . . . . . . . . . . . . . . . . . . . . . Machines Sabotaged . | . . . . . . . . . . . . . . . . . . . . . . . . . . Overloaded Fab Kills . | . . . . . . . . . . . . . . . . . . . . . . . . . . Hacking | -11 -10 -10 -9 -8 -7 -7 -7 -6 -6 -6 -5 -5 -5 -5 -4 -4 -4 -4 -4 -4 -4 -3 -3 -3 -2 --------- Run | Yrd Mat Min Mat Mat Fac Low Low Fac Was Fac Fac Upp Upp War Pro Fac Was Fac Upp Upp Zhi Pro Res Qua Res Machines Accessed 132 | . 3 1 9 7 16 . . 14 . 13 21 1 1 6 . 6 . 14 1 . 4 . 3 9 3 Terminals 70 | . 3 . 6 4 10 . . 6 . 9 12 . . . . 2 . 7 . . . . 1 7 3 Fabricators 22 | . . . . . 5 . . 5 . 2 6 . . . . 2 . 2 . . . . . . . Repair Stations 5 | . . . 1 1 . . . 1 . . . . . . . 1 . . . . . . 1 . . Recycling Units 8 | . . . 1 1 . . . . . 1 2 . . . . . . 3 . . . . . . . Scanalyzers 4 | . . . 1 1 . . . . . . . . . . . 1 . . . . . . . 1 . Garrison Access 9 | . . . . . 1 . . 2 . 1 1 . . . . . . 2 . . . . 1 1 . Total Hacks 357 | . 16 1 17 18 33 . . 40 . 28 48 1 1 12 . 26 . 35 1 . 17 . 10 35 18 Successful 267 | . 6 1 10 8 19 . . 33 . 21 38 1 1 12 . 23 . 29 1 . 17 . 7 29 11 Failed 87 | . 9 . 7 10 14 . . 7 . 7 10 . . . . 2 . 5 . . . . 3 6 7 Catastrophic 21 | . 1 . 2 3 6 . . . . 3 3 . . . . . . 1 . . . . . 1 1 Database Lockouts 3 | . 1 . . . . . . . . . . . . . . 1 . 1 . . . . . . . Manual 188 | . 16 . 10 13 14 . . 19 . 18 28 . . . . 10 . 21 . . . . 6 22 11 Terminals 214 | . 16 . 13 13 22 . . 16 . 22 29 . . . . 7 . 20 . . . . 6 32 18 Fabricators 72 | . . . . . 9 . . 19 . 4 16 . . . . 14 . 10 . . . . . . . Repair Stations 10 | . . . 2 1 . . . 2 . . . . . . . 2 . . . . . . 3 . . Recycling Units 9 | . . . 1 2 . . . . . 1 2 . . . . . . 3 . . . . . . . Scanalyzers 8 | . . . 1 2 . . . . . . . . . . . 3 . . . . . . . 2 . Garrison Access 11 | . . . . . 2 . . 3 . 1 1 . . . . . . 2 . . . . 1 1 . Terminal Hacks 123 | . 2 1 2 1 8 . . 9 . 10 14 1 1 12 . 4 . 10 1 . 17 . 2 19 9 Record 12 | . . . . . . . . . . . . . 1 6 . . . . . . 5 . . . . Part Schematic 21 | . 1 . . . 2 . . 3 . 1 2 . . . . 1 . 2 . . 4 . 1 3 1 Robot Analysis 6 | . . . . . . . . . . . . . . . . . . . . . 4 . . 2 . Prototype ID Bank 10 | . . . 1 . . . . . . . . . . 4 . . . 1 . . 4 . . . . Open Door 5 | . . 1 . . . . . . . . . 1 . 2 . . . . 1 . . . . . . Level Access Points 3 | . . . . 1 . . . 1 . . . . . . . . . . . . . . . 1 . Branch Access Points 5 | . . . . . 1 . . 1 . . 1 . . . . . . 1 . . . . . . 1 Machine Index 6 | . . . . . . . . 1 . 1 1 . . . . 1 . 1 . . . . . 1 . Terminal Index 10 | . 1 . 1 . 1 . . 1 . 1 1 . . . . . . . . . . . 1 1 2 Fabricator Index 2 | . . . . . 1 . . . . . . . . . . . . . . . . . . . 1 Alert Level 1 | . . . . . . . . . . . 1 . . . . . . . . . . . . . . Unreport Threat 7 | . . . . . . . . . . 1 1 . . . . . . 3 . . . . . 1 1 Locate Traps 9 | . . . . . 1 . . . . 2 2 . . . . 1 . 1 . . . . . 2 . Recall Investigation 1 | . . . . . . . . . . . . . . . . . . . . . . . . 1 . Recall Extermination 12 | . . . . . 2 . . 1 . 1 2 . . . . 1 . 1 . . . . . 2 2 Zone Layout 13 | . . . . . . . . 1 . 3 3 . . . . . . . . . . . . 5 1 Fabricator Hacks 43 | . . . . . 4 . . 11 . 2 9 . . . . 11 . 6 . . . . . . . Network Status 1 | . . . . . . . . . . . . . . . . 1 . . . . . . . . . Load Schematic 29 | . . . . . 3 . . 7 . 2 7 . . . . 6 . 4 . . . . . . . Build 13 | . . . . . 1 . . 4 . . 2 . . . . 4 . 2 . . . . . . . Repair Station Hacks 9 | . . . 2 1 . . . 1 . . . . . . . 2 . . . . . . 3 . . Scan Component 6 | . . . 1 1 . . . 1 . . . . . . . 1 . . . . . . 2 . . Repair 3 | . . . 1 . . . . . . . . . . . . 1 . . . . . . 1 . . Recycling Unit Hacks 8 | . . . 1 1 . . . . . 1 2 . . . . . . 3 . . . . . . . Retrieve Components 8 | . . . 1 1 . . . . . 1 2 . . . . . . 3 . . . . . . . Scanalyzer 8 | . . . 1 2 . . . . . . . . . . . 3 . . . . . . . 2 . Insert Component 7 | . . . 1 1 . . . . . . . . . . . 3 . . . . . . . 2 . Analyze 1 | . . . . 1 . . . . . . . . . . . . . . . . . . . . . Garrison Access Hacks 8 | . . . . . . . . 2 . 1 1 . . . . . . 2 . . . . 1 1 . Seal Access 8 | . . . . . . . . 2 . 1 1 . . . . . . 2 . . . . 1 1 . Unauthorized Hacks 68 | . 4 . 4 3 7 . . 10 . 7 12 . . . . 3 . 8 . . . . 1 7 2 Terminals 42 | . 4 . 4 3 3 . . 4 . 5 5 . . . . . . 4 . . . . 1 7 2 Track 2 | . . . . . . . . . . . . . . . . . . . . . . . . 2 . Assimilate 14 | . 1 . 1 . 1 . . 2 . 3 2 . . . . . . 1 . . . . . 1 2 Botnet 20 | . 2 . 2 2 2 . . 2 . 2 2 . . . . . . 2 . . . . 1 3 . Disrupt 1 | . . . . 1 . . . . . . . . . . . . . . . . . . . . . Operators 5 | . 1 . 1 . . . . . . . 1 . . . . . . 1 . . . . . 1 . Fabricators 26 | . . . . . 4 . . 6 . 2 7 . . . . 3 . 4 . . . . . . . Prioritize 7 | . . . . . . . . 2 . . 2 . . . . 1 . 2 . . . . . . . Recompile 19 | . . . . . 4 . . 4 . 2 5 . . . . 2 . 2 . . . . . . . Repair Stations . | . . . . . . . . . . . . . . . . . . . . . . . . . . Recycling Units . | . . . . . . . . . . . . . . . . . . . . . . . . . . Scanalyzers . | . . . . . . . . . . . . . . . . . . . . . . . . . . Garrison Access . | . . . . . . . . . . . . . . . . . . . . . . . . . . Data Cores Recovered . | . . . . . . . . . . . . . . . . . . . . . . . . . . Used . | . . . . . . . . . . . . . . . . . . . . . . . . . . Hacking Detections 74 | . 3 . 6 6 11 . . 8 . 10 12 . . . . 4 . 6 . . . . 1 4 3 Full Trace Events 3 | . . . . 1 1 . . . . . . . . . . . . . . . . . . . 1 Feedback Events . | . . . . . . . . . . . . . . . . . . . . . . . . . . Feedback Blocked . | . . . . . . . . . . . . . . . . . . . . . . . . . . Robot Schematics Acquired . | . . . . . . . . . . . . . . . . . . . . . . . . . . Robots Built . | . . . . . . . . . . . . . . . . . . . . . . . . . . Authchips . | . . . . . . . . . . . . . . . . . . . . . . . . . . Time . | . . . . . . . . . . . . . . . . . . . . . . . . . . Total Robot Build Rating . | . . . . . . . . . . . . . . . . . . . . . . . . . . Part Schematics Acquired 22 | . 1 . . 1 2 . . 3 . 1 2 . . . . 1 . 2 . . 4 . 1 3 1 Parts Built 15 | . . . . . 1 . . 4 . . 3 . . . . 5 . 2 . . . . . . . Authchips 12 | . . . . . . . . 4 . . 2 . . . . 4 . 2 . . . . . . . Time 908 | . . . . . 25 . . 211 . . 269 . . . . 189 . 214 . . . . . . . Total Part Build Rating 87 | . . . . . 1 . . 24 . . 19 . . . . 31 . 12 . . . . . . . Parts Repaired 3 | . . . 1 . . . . . . . . . . . . 1 . . . . . . 1 . . Time 105 | . . . 26 . . . . . . . . . . . . 25 . . . . . . 54 . . Parts Recycled . | . . . . . . . . . . . . . . . . . . . . . . . . . . Recycled Matter . | . . . . . . . . . . . . . . . . . . . . . . . . . . Retrieved Matter . | . . . . . . . . . . . . . . . . . . . . . . . . . . Retrieved Components 15 | . . . 1 9 . . . . . 1 . . . . . . . 4 . . . . . . . Parts Scanalyzed 1 | . . . . 1 . . . . . . . . . . . . . . . . . . . . . Part Schematics Acquired 1 | . . . . 1 . . . . . . . . . . . . . . . . . . . . . Parts Damaged . | . . . . . . . . . . . . . . . . . . . . . . . . . . Bothacking | -11 -10 -10 -9 -8 -7 -7 -7 -6 -6 -6 -5 -5 -5 -5 -4 -4 -4 -4 -4 -4 -4 -3 -3 -3 -2 ------------ Run | Yrd Mat Min Mat Mat Fac Low Low Fac Was Fac Fac Upp Upp War Pro Fac Was Fac Upp Upp Zhi Pro Res Qua Res Used RIF Installer . | . . . . . . . . . . . . . . . . . . . . . . . . . . Robots Hacked . | . . . . . . . . . . . . . . . . . . . . . . . . . . Non-combat . | . . . . . . . . . . . . . . . . . . . . . . . . . . Combat . | . . . . . . . . . . . . . . . . . . . . . . . . . . Robot Hacks Applied . | . . . . . . . . . . . . . . . . . . . . . . . . . . Relay Couplers Released . | . . . . . . . . . . . . . . . . . . . . . . . . . . Fabnet Peak Effective % . | . . . . . . . . . . . . . . . . . . . . . . . . . . Robots Rewired 5 | . . . . . . . . . . . . . . 5 . . . . . . . . . . . Allies Hacked 2 | . . . . . . . . . . . . . . . . . . . . . . . . 2 . Hacks Repelled . | . . . . . . . . . . . . . . . . . . . . . . . . . . Allies | -11 -10 -10 -9 -8 -7 -7 -7 -6 -6 -6 -5 -5 -5 -5 -4 -4 -4 -4 -4 -4 -4 -3 -3 -3 -2 -------- Run | Yrd Mat Min Mat Mat Fac Low Low Fac Was Fac Fac Upp Upp War Pro Fac Was Fac Upp Upp Zhi Pro Res Qua Res Total Allies 44 | . 1 . . . 1 . . 2 1 2 2 . . 5 . . 20 1 . . . . . 1 8 Largest Group 20 | . 1 1 1 . 1 1 1 3 1 2 2 . . 5 . . 20 1 . . . . . 1 4 Highest-Rated Group 864 | . 10 10 10 . 26 26 26 46 31 52 36 . . 276 . . 864 26 . . . . . 26 52 Highest-Rated Ally 64 | . 10 10 10 . 26 26 26 26 31 26 26 . . 64 . . 50 26 . . . . . 26 26 Total Orders 15 | . . . 2 . . . 2 . . . . . . 10 . . . . . . . . . 1 . STAY 8 | . . . 1 . . . 1 . . . . . . 5 . . . . . . . . . 1 . FOLLOW 7 | . . . 1 . . . 1 . . . . . . 5 . . . . . . . . . . . Ally Attacks 22 | . . . . . . . . . 10 . . . . 1 . . . . . . . . . . 11 Total Damage 326 | . . . . . . . . . 130 . . . . 13 . . . . . . . . . . 183 Kills 1 | . . . . . . . . . . . . . . 1 . . . . . . . . . . . Allies Corrupted 1 | . . . . . . . . . . . . . . . . . . . . . . . . 1 . Allies Melted . | . . . . . . . . . . . . . . . . . . . . . . . . . . Intel | -11 -10 -10 -9 -8 -7 -7 -7 -6 -6 -6 -5 -5 -5 -5 -4 -4 -4 -4 -4 -4 -4 -3 -3 -3 -2 ------- Run | Yrd Mat Min Mat Mat Fac Low Low Fac Was Fac Fac Upp Upp War Pro Fac Was Fac Upp Upp Zhi Pro Res Qua Res Active Infowar (turns) 14778 | 24 271 376 911 314 842 425 1330 1039 73 538 1080 364 640 835 284 497 49 901 165 112 144 168 759 1452 1185 Sensors 12905 | . . . . 23 842 425 1330 1039 73 538 1080 364 640 835 284 497 49 901 165 112 144 168 759 1452 1185 Seismic 1873 | 24 271 376 911 291 . . . . . . . . . . . . . . . . . . . . . Robot Analysis Total 6 | . . . . . . . . . . . . . . . . . . . . . 4 . . 2 . Derelict Logs Recovered 10 | . . 1 . . . 1 1 . . . . 2 1 . 1 . . . 2 1 . . . . . Drone Launches . | . . . . . . . . . . . . . . . . . . . . . . . . . . Drone Recoveries . | . . . . . . . . . . . . . . . . . . . . . . . . . . Exploration | -11 -10 -10 -9 -8 -7 -7 -7 -6 -6 -6 -5 -5 -5 -5 -4 -4 -4 -4 -4 -4 -4 -3 -3 -3 -2 ------------- Run | Yrd Mat Min Mat Mat Fac Low Low Fac Was Fac Fac Upp Upp War Pro Fac Was Fac Upp Upp Zhi Pro Res Qua Res Turns Passed 16557 | 129 271 376 1168 700 844 428 1511 1101 73 567 1117 370 640 842 298 497 95 935 167 245 149 168 869 1632 1365 Spaces Moved 17930 | 67 232 376 646 353 1281 698 1298 1289 110 900 1492 796 1207 890 450 821 241 1423 438 466 257 322 482 756 639 Core 86 | 2 . . . . . . . 3 . . . . . . . . . . . . . . . . 81 Treads 1282 | . . . . . . . . . . . . . . . . . . . . . . . . 724 558 Legs . | . . . . . . . . . . . . . . . . . . . . . . . . . . Wheels 1672 | 65 232 376 646 353 . . . . . . . . . . . . . . . . . . . . . Hover 14890 | . . . . . 1281 698 1298 1286 110 900 1492 796 1207 890 450 821 241 1423 438 466 257 322 482 32 . Flight . | . . . . . . . . . . . . . . . . . . . . . . . . . . Fastest Speed 15 | 50 90 95 95 115 35 35 36 38 38 38 44 44 44 38 38 31 31 15 31 31 31 31 82 98 50 Average Speed 59 | 87 102 95 122 124 35 44 90 40 38 42 44 44 44 41 38 34 31 30 31 31 34 49 87 155 148 Slowest Speed 1000 | 90 105 95 155 215 43 95 95 1000 38 44 105 44 44 44 38 96 31 31 31 88 82 82 98 166 225 Overloaded Moves 17 | . . . . . . . . . . . . . . . . . . 17 . . . . . . . Propulsion Burnouts . | . . . . . . . . . . . . . . . . . . . . . . . . . . Robots Hopped . | . . . . . . . . . . . . . . . . . . . . . . . . . . Potential Cave-ins . | . . . . . . . . . . . . . . . . . . . . . . . . . . Cave-ins Triggered . | . . . . . . . . . . . . . . . . . . . . . . . . . . Teleports 1 | . . . . . . . . . . . . . . . . . . . . . . . . . 1 Exploration Rate (%) 52 | 4 45 78 46 37 35 72 89 36 62 23 35 97 94 82 51 16 71 39 67 72 60 61 9 68 12 Regions Visited 25 Branch Regions 12 Pre-discovered Areas 7 | . . 1 . . . . . . . . . 1 . 1 1 . . . . . 3 . . . . Known Exits Taken 17 | . . . . 1 1 1 1 . . 1 1 1 1 1 1 . . 1 1 1 1 1 1 1 . Unknown Exits Taken 4 | 1 1 1 1 . . . . . . . . . . . . . . . . . . . . . . Scrap Searched 20 | . . . . . . 2 1 . . . . 5 2 . 1 . . . 2 4 . 3 . . . Spaces Dug 281 | . . . . 2 20 3 . 31 . 28 47 . 4 6 10 14 . 54 1 1 . 2 8 20 30 Terrain Destroyed 859 | . . . . 3 21 7 3 49 . 35 124 . 169 6 72 22 . 129 16 85 . 3 8 39 68 Melee 76 | . . . . 2 10 2 . 1 . . 22 . . 6 1 3 . . . . . . 7 15 7 Projectile 366 | . . . . 1 11 5 3 48 . 35 52 . 12 . 18 19 . 88 3 6 . 3 1 24 37 AOE 417 | . . . . . . . . . . . 50 . 157 . 53 . . 41 13 79 . . . . 24 Terrain Rammed . | . . . . . . . . . . . . . . . . . . . . . . . . . . Walls Destroyed . | . . . . . . . . . . . . . . . . . . . . . . . . . . Machines Disabled . | . . . . . . . . . . . . . . . . . . . . . . . . . . Actions | -11 -10 -10 -9 -8 -7 -7 -7 -6 -6 -6 -5 -5 -5 -5 -4 -4 -4 -4 -4 -4 -4 -3 -3 -3 -2 --------- Run | Yrd Mat Min Mat Mat Fac Low Low Fac Was Fac Fac Upp Upp War Pro Fac Was Fac Upp Upp Zhi Pro Res Qua Res Total 22565 | 108 267 397 896 498 1616 783 1601 1800 140 1048 1852 815 1292 1352 553 1005 263 1807 464 548 300 329 836 1050 945 Wait 2965 | 10 15 10 91 39 250 50 240 417 31 95 206 11 36 416 69 113 4 257 11 38 9 3 253 105 186 Move 17908 | 66 231 375 645 352 1280 697 1297 1289 109 900 1491 795 1206 889 449 821 240 1422 437 465 256 321 481 755 639 Hop . | . . . . . . . . . . . . . . . . . . . . . . . . . . Pick Up 184 | 8 11 5 26 7 11 1 8 10 . 3 18 1 6 5 2 13 5 6 3 4 4 . 10 13 4 Fast Attach 70 | 7 . . 6 5 3 1 . 1 . 1 5 1 1 . 2 6 2 . . 3 2 . 7 11 6 Attach 94 | . . . 4 2 8 4 2 7 . . 10 . 7 1 2 9 1 6 3 5 1 1 4 8 9 Detach 41 | . . . 1 1 3 2 2 2 . . 6 2 2 . 1 1 2 . . 2 1 . 1 8 4 Swap 169 | 1 4 2 22 14 5 5 7 8 . 3 7 3 2 13 1 3 2 11 3 3 6 1 14 21 8 Drop 204 | 2 6 5 29 11 18 2 5 4 . 5 19 2 7 7 4 9 7 6 3 7 5 1 8 24 8 Fire 733 | 14 . . 71 65 12 13 39 60 . 40 59 . 25 1 22 25 . 99 4 18 16 2 9 70 69 Melee 176 | . . . . 2 26 8 . 2 . . 31 . . 7 1 5 . . . . . . 49 35 10 Ram 3 | . . . 1 . . . . . . 1 . . . . . . . . . . . . . . 1 Kick . | . . . . . . . . . . . . . . . . . . . . . . . . . . Crush 1 | . . . . . . . . . . . . . . . . . . . . . . . . . 1 Escape Stasis . | . . . . . . . . . . . . . . . . . . . . . . . . . . Rewire 16 | . . . . . . . . . . . . . . 13 . . . . . 3 . . . . . Trap . | . . . . . . . . . . . . . . . . . . . . . . . . . . Miscellaneous 1 | . . . . . . . 1 . . . . . . . . . . . . . . . . . . Route ------- -11/Scrapyard -10/Materials (discovered 2 exits: *Mat / *Min) -10/Mines (discovered 2 exits: *Mat x2) -9/Materials -8/Materials (discovered 3 exits: *Fac x3) -7/Factory (discovered 2 exits: *Low x2) -7/Lower Caves (discovered 2 exits: *Low / *Zio) -7/Lower Caves -6/Factory (discovered 6 exits: Fac x4 / Low x2) -6/Waste -6/Factory (discovered 2 exits: *Fac x2) -5/Factory (discovered 4 exits: *Upp x2 / Ext x2) -5/Upper Caves -5/Upper Caves (discovered 2 exits: *Fac / *War) -5/Warlord -4/Proximity Caves -4/Factory -4/Waste -4/Factory (discovered 4 exits: *Res / *Upp x2 / Arm) -4/Upper Caves -4/Upper Caves (discovered 2 exits: *Res / *Zhi) -4/Zhirov -3/Proximity Caves -3/Research (discovered 3 exits: Res x2 / *Qua) -3/Quarantine -2/Research History --------- Turn | Location | Event 2 | -11/Scrapyard | Met Revision 17 17 | -11/Scrapyard | Discovered new exit (range 16) 130 | -11/Scrapyard | Entered Materials 209 | -10/Materials | Discovered new exit (range 15) 212 | -10/Materials | Central database locked down 303 | -10/Materials | Build established: Mutant 392 | -10/Materials | Discovered new exit (range 6) 401 | -10/Materials | Entered Mines 401 | -10/Mines | Accompanied by 1 ally 418 | -10/Mines | Met a Derelict bent on vengeance 434 | -10/Mines | Discovered new exit (range 4) 480 | -10/Mines | Received a Rocket Launcher from a helpful Derelict 526 | -10/Mines | Met a Derelict who couldn't figure out how to use a Trap Extractor 722 | -10/Mines | Discovered new exit (range 9) 743 | -10/Mines | Found a damaged Exp. Sensor Array with a note attached 747 | -10/Mines | Found Prototype Device 777 | -10/Mines | Entered Materials 777 | -9/Materials | Accompanied by 1 ally 777 | -9/Materials | Evolved 2 slots: Utility x2 785 | -9/Materials | Identified Exp. Sensor Array 1445 | -9/Materials | Build established: Scavenger-Mutant 1528 | -9/Materials | Repaired Seismic Detector 1736 | -9/Materials | Core integrity fell below 50% 1890 | -9/Materials | Discovered new exit (range 7) 1945 | -9/Materials | Entered another Materials area 1945 | -8/Materials | Evolved 2 slots: Propulsion x2 2167 | -8/Materials | Lost 3 parts (3n) 2383 | -8/Materials | Identified exit to Factory 2500 | -8/Materials | System corruption reached 10% 2511 | -8/Materials | Garrison activated, responded to threat 2645 | -8/Materials | Entered Factory 2645 | -7/Factory | Evolved 2 slots: Propulsion x2 2961 | -7/Factory | Build established: Mutant 2967 | -7/Factory | Fabricated Hcp. Storage Unit (x1) 3151 | -7/Factory | Garrison activated, responded to threat 3446 | -7/Factory | Identified exit to Lower Caves 3489 | -7/Factory | Entered Lower Caves 3489 | -7/Lower Caves | Accompanied by 1 ally 3574 | -7/Lower Caves | Learned Factory stockpile data 3739 | -7/Lower Caves | Found Alien Artifact 3739 | -7/Lower Caves | Identified Core Expander 3739 | -7/Lower Caves | Installed Core Expander, added new Utility slot 3837 | -7/Lower Caves | A Derelict revealed a hidden shortcut to a safe place 3840 | -7/Lower Caves | Identified exit to Zion 3908 | -7/Lower Caves | Discovered new exit (range 11) 3915 | -7/Lower Caves | Identified exit to Lower Caves 3917 | -7/Lower Caves | Entered another Lower Caves area 3917 | -7/Lower Caves | Accompanied by 1 ally 4623 | -7/Lower Caves | Discovered new exit (range 15) 4636 | -7/Lower Caves | Identified exit to Factory 4678 | -7/Lower Caves | Found DRS Beacon 4785 | -7/Lower Caves | Activated DRS Beacon 5428 | -7/Lower Caves | Entered Factory 5428 | -6/Factory | Accompanied by 1 ally 5428 | -6/Factory | Evolved 2 slots: Power x1, Utility x1 5509 | -6/Factory | Identified exit to Factory 5509 | -6/Factory | Identified exit to Lower Caves 5633 | -6/Factory | Build established: Scavenger-Mutant 6008 | -6/Factory | Fabricated Adv. Hacking Suite? 6058 | -6/Factory | Lost 3 allies 6392 | -6/Factory | Fabricated Adv. Hacking Suite? 6424 | -6/Factory | Fabricated Adv. Hacking Suite (x1) 6470 | -6/Factory | Fabricated Adv. Hacking Suite (x1) 6529 | -6/Factory | Sucked down chute 6529 | -6/Factory | Entered Waste 6530 | -6/Waste | Met a frightened Derelict 6539 | -6/Waste | Spotted C-40 Crusher 6540 | -6/Waste | Spotted C-40 Crusher 6541 | -6/Waste | Spotted C-40 Crusher 6544 | -6/Waste | EMP discharged 6573 | -6/Waste | Spotted C-40 Crusher 6575 | -6/Waste | Spotted C-40 Crusher 6592 | -6/Waste | Spotted C-40 Crusher 6596 | -6/Waste | Discovered new exit (range 16) 6602 | -6/Waste | Identified exit to Factory 6602 | -6/Waste | Entered Factory 6863 | -6/Factory | Discovered exit to Factory (range 18) 6952 | -6/Factory | Discovered exit to Factory (range 3) 7169 | -6/Factory | Entered another Factory area 7169 | -5/Factory | Evolved 2 slots: Utility x2 7170 | -5/Factory | Identified exit to Extension 7350 | -5/Factory | Identified exit to Upper Caves 7473 | -5/Factory | Build established: Hacker-Mutant 7585 | -5/Factory | Fabricated Graphene Brace? 7616 | -5/Factory | Fabricated Exp. Utility Shielding (x1) 8286 | -5/Factory | Entered Upper Caves 8291 | -5/Upper Caves | Encountered a Warlord checkpoint 8398 | -5/Upper Caves | Attracted the attention of an 0b10 checkpoint 8604 | -5/Upper Caves | Discovered new exit (range 12) 8619 | -5/Upper Caves | Identified exit to Upper Caves 8625 | -5/Upper Caves | Learned Factory terminal intel 8656 | -5/Upper Caves | Entered another Upper Caves area 8682 | -5/Upper Caves | Discovered new exit (range 12) 8686 | -5/Upper Caves | Identified exit to Factory 8832 | -5/Upper Caves | Learned Factory terminal intel 9224 | -5/Upper Caves | Discovered new exit (range 12) 9287 | -5/Upper Caves | Found Alien Artifact 9296 | -5/Upper Caves | Identified exit to Warlord 9296 | -5/Upper Caves | Entered Warlord 9407 | -5/Warlord | Learned 4 Research zone layouts 9407 | -5/Warlord | Learned Quarantine security intel 9407 | -5/Warlord | Learned Research recycling unit intel 9407 | -5/Warlord | Learned Research scanalyzer intel 9407 | -5/Warlord | Learned location of Command (-1) 9407 | -5/Warlord | Learned Testing stockpile data 9435 | -5/Warlord | Visited the Vortex Lab 9438 | -5/Warlord | Found Prototype Energy Gun 9438 | -5/Warlord | Identified Vortex Rifle 9443 | -5/Warlord | Found Vortex Rifle 9451 | -5/Warlord | Warlord's base attacked by MAIN.C 9550 | -5/Warlord | Found Prototype Device 9550 | -5/Warlord | Identified System Purifier 9554 | -5/Warlord | Found Prototype Processor 9558 | -5/Warlord | Found Prototype Reactor 9608 | -5/Warlord | Spotted B-86 Titan 9708 | -5/Warlord | Opened side exit 9801 | -5/Warlord | Warlord forces counterattacked 9824 | -5/Warlord | Build established: Wizard-Mutant 10126 | -5/Warlord | Warlord base infiltrated, sounded retreat 10132 | -5/Warlord | Spotted Executioner 10135 | -5/Warlord | Discovered new exit (range 11) 10138 | -5/Warlord | Identified exit to Proximity Caves 10138 | -5/Warlord | Entered Proximity Caves 10360 | -4/Proximity Caves | Discovered exit to Factory (range 9) 10436 | -4/Proximity Caves | Attracted the attention of an 0b10 checkpoint 10436 | -4/Proximity Caves | Entered Factory 10436 | -4/Factory | Evolved 2 slots: Utility x2 10437 | -4/Factory | Loaded intel: 26 terminal locations 10499 | -4/Factory | Fabricated Exp. Targeting Computer? 10603 | -4/Factory | Identified Spectral Analyzer 10603 | -4/Factory | Identified Vortex Chain Reactor 10614 | -4/Factory | Central database locked down 10723 | -4/Factory | Fabricated Prc. Energy Filter (x1) 10767 | -4/Factory | Fabricated Prc. Energy Filter (x1) 10798 | -4/Factory | Fabricated Adv. Hardlight Generator (x2) 10836 | -4/Factory | Repaired Phase Cannon? 10878 | -4/Factory | Build established: Wizard-Sprinter 10933 | -4/Factory | Sucked down chute 10933 | -4/Factory | Entered Waste 10934 | -4/Waste | Joined by Warlord forces that had cleared the area 11024 | -4/Waste | Discovered new exit (range 16) 11028 | -4/Waste | Identified exit to Factory 11028 | -4/Waste | Entered Factory 11029 | -4/Factory | Loaded intel: 26 terminal locations 11108 | -4/Factory | Fabricated Exp. Signal Interpreter (x1) 11134 | -4/Factory | Discovered new exit (range 15) 11144 | -4/Factory | Identified exit to Upper Caves 11184 | -4/Factory | Discovered new exit (range 12) 11428 | -4/Factory | Central database locked down 11457 | -4/Factory | Identified exit to Armory 11624 | -4/Factory | Fabricated Exp. Targeting Computer? 11911 | -4/Factory | Destroyed 8 combat bots 11963 | -4/Factory | Entered Upper Caves 12034 | -4/Upper Caves | Learned 8 Research zone layouts 12041 | -4/Upper Caves | Learned 4 Research zone layouts 12125 | -4/Upper Caves | Discovered new exit (range 8) 12127 | -4/Upper Caves | Identified exit to Upper Caves 12130 | -4/Upper Caves | Entered another Upper Caves area 12139 | -4/Upper Caves | Discovered new exit (range 5) 12141 | -4/Upper Caves | Identified exit to Research 12181 | -4/Upper Caves | Learned Research emergency access door positions 12208 | -4/Upper Caves | Spotted B-86 Titan 12346 | -4/Upper Caves | Discovered new exit (range 16) 12375 | -4/Upper Caves | Identified exit to Zhirov 12375 | -4/Upper Caves | Entered Zhirov 12375 | -4/Zhirov | Discovered new exit (range 3) 12376 | -4/Zhirov | Identified exit to Proximity Caves 12382 | -4/Zhirov | Met Zhirov 12389 | -4/Zhirov | Learned location of Quarantine (-3) 12389 | -4/Zhirov | Learned location of Testing (-2) 12391 | -4/Zhirov | Zhirov requested help retrieving the SGEMP Prototype 12423 | -4/Zhirov | Found Alien Artifact 12428 | -4/Zhirov | Found Alien Artifact 12428 | -4/Zhirov | Identified Integrated Reactor 12428 | -4/Zhirov | Installed Integrated Reactor, increased core energy generation (+10) 12524 | -4/Zhirov | Entered Proximity Caves 12684 | -3/Proximity Caves | Discovered exit to Research (range 10) 12692 | -3/Proximity Caves | Entered Research 12692 | -3/Research | Evolved 2 slots: Weapon x2 12693 | -3/Research | Identified exit to Research 12695 | -3/Research | Loaded intel: 5 recycling unit locations 12696 | -3/Research | Loaded intel: 6 scanalyzer locations 12751 | -3/Research | Discovered new exit (range 6) 12758 | -3/Research | Identified exit to Quarantine 12898 | -3/Research | Build established: Wizard-Mutant 12941 | -3/Research | Repaired Cld. Antigrav System 13272 | -3/Research | System corruption reached 10% 13298 | -3/Research | Lost 4 parts (1p1n2w) 13561 | -3/Research | Entered Quarantine 14233 | -3/Quarantine | Found Alien Artifact 14233 | -3/Quarantine | Identified Subatomic Replicator 14309 | -3/Quarantine | Cryocooling Duct disabled 14324 | -3/Quarantine | Ambient heat levels rising (+20) 14324 | -3/Quarantine | Non-combat units ordered to evacuate 14435 | -3/Quarantine | Found Alien Artifact 14436 | -3/Quarantine | Identified Phase Redirector 14902 | -3/Quarantine | Found Alien Artifact 14947 | -3/Quarantine | Found Alien Impact Weapon 14947 | -3/Quarantine | Identified Core Stripper 14993 | -3/Quarantine | Identified Core Reset Matrix 14993 | -3/Quarantine | Identified Transdimensional Reconstructor 15055 | -3/Quarantine | System corruption reached 30% 15193 | -3/Quarantine | Entered Research 15193 | -2/Research | Evolved 2 slots: Utility x2 15303 | -2/Research | Identified exit to Testing 15663 | -2/Research | Warped through subspace 15995 | -2/Research | System corruption reached 10% 16486 | -2/Research | Spotted Executioner 16486 | -2/Research | Spotted Executioner 16487 | -2/Research | Cargo convoy interrupted 16507 | -2/Research | Used Core Reset Matrix 16509 | -2/Research | Core integrity fell below 50% 16511 | -2/Research | Sensed 2 artifacts in vicinity 16513 | -2/Research | Emitted hypermatrix ping 16517 | -2/Research | Core integrity fell below 20% 16518 | -2/Research | Assembled emerged from beneath the floor 16542 | -2/Research | Lost 7 parts (2n4u1w) 16551 | -2/Research | Lost 3 allies 16558 | -2/Research | Destroyed by P-80 Master with Gamma Rifle Last Messages --------------- 16511_ Sensed 2 artifacts in vicinity. 16511_ Adv. System Shield destroyed. 16511_ K-01 Serf collects debris. 16512_ Slug penetrates P-80 Master. 16512_ Slug penetrates K-01 Serf. 16513_ Emitted hypermatrix ping. 16515_ K-01 Serf destroyed. 16516_ K-01 Serf collects debris. 16516_ Penetrated by Slug. 16518_ Assembled emerge from beneath the floor. 16519_ as-13223 destroyed. 16519_ as-15126 destroyed. 16530_ System corrupted: Component data lost. 16540_ Acquired Unknown Treads. 16540_ Identified Biometal Medium Treads. 16543_ Acquired Biometal Medium Treads. 16548_ Dropped Biometal Medium Treads. 16553_ Slammed into P-80 Master. 16554_ Penetrated by Slug. 16556_ Adv. Coolant Injector destroyed. Map ----- +----------------------------------------------------+ | ?????????????????????????????????????????????????? | | ?????????????????????????????????????????????????? | | ?????????????????????????????????????????????????? | | ?????????????????????????????????????????????????? | | ?????????????????????????????????????????????????? | | ?????????????????????????????????????????????????? | | ?????????????????????????????????????????????????? | | ?????????????????????????????????????????????????? | | ?????????????????????????????????????????????????? | | ?????????????????????????????????????????????????? | | ?????????????????????????????????????????????????? | | ?????????????????????????????????????????????????? | | ??????????###############????????????????????????? | | ??????????# #????????????????????????? | | ??????????# === #????????????????????????? | | ??????????# === ! #????????????????????????? | | ??????????# = #????????????????????????? | | ??????????# #????????????????????????? | | ##????????# #????????????????????????? | | #????????# #????????????????????????? | | #????????# #????????????????????????? | | #????????# #????????????????????????? | | #????????# #????????????????????????? | | #????????# #????????????????????????? | | ################p###########+####???????????????? | | p p @ ????????? | | kpp k k ????????? | | p ????????? | | ?????????? | | ############### ################# ?????????? | | ??????????????# #?????????????????????????????? | | ??????????????# #?????????????????????????????? | | ??????????????# #?????????????????????????????? | | ??????????????# #?????????????????????????????? | | ??????????????# #?????????????????????????????? | | ??????????????+ +?????????????????????????????? | | ??????????????# #?????????????????????????????? | | ??????????????# #?????????????????????????????? | | ??????????????# #?????????????????????????????? | | ??????????????# #?????????????????????????????? | | ??????????????? #?????????????????????????????? | | ??????????????? ??????????????????????????????? | | ?????????????????????????????????????????????????? | | ?????????????????????????????????????????????????? | | ?????????????????????????????????????????????????? | | ?????????????????????????????????????????????????? | | ?????????????????????????????????????????????????? | | ?????????????????????????????????????????????????? | | ?????????????????????????????????????????????????? | | ?????????????????????????????????????????????????? | +----------------------------------------------------+ Best States ------------- Heat Dissipation 69 Coolant Potential 100 Energy Generation 53 Energy Capacity 580 Matter Stores 300 Matter Capacity 300 Sight Range 16 Robot Scan Range 20 Terrain Scan Density 10 Armor Coverage 675 Power Shielding 90 Utility Shielding 90 Weapon Shielding 66 Evasion (%) 58 Targeting Accuracy 12 Recoil Reduction 6 Offensive Hacking 70 Defensive Hacking 28 Authchip Count 9 Item Schematics ----------------- None Robot Schematics ------------------ None Fabricated ------------ Hcp. Storage Unit | x1 | -7/Factory Adv. Hacking Suite | x1 | -6/Factory | Authchip Adv. Hacking Suite | x1 | -6/Factory | Authchip Adv. Hacking Suite | x1 | -6/Factory | Authchip Adv. Hacking Suite | x1 | -6/Factory | Authchip Graphene Brace | x2 | -5/Factory | Authchip Exp. Utility Shielding | x1 | -5/Factory | Authchip Exp. Targeting Computer | x1 | -4/Factory | Authchip Prc. Energy Filter | x1 | -4/Factory | Authchip Prc. Energy Filter | x1 | -4/Factory | Authchip Adv. Hardlight Generator | x2 | -4/Factory | Authchip Exp. Signal Interpreter | x1 | -4/Factory | Authchip Exp. Targeting Computer | x1 | -4/Factory | Authchip Repaired ---------- Seismic Detector | 25% | -9/Materials Phase Cannon | 33% | -4/Factory Cld. Antigrav System | 72% | -3/Research Alien Tech Used ----------------- Core Expander Integrated Reactor Subatomic Replicator Phase Redirector Core Stripper Transdimensional Reconstructor Core Reset Matrix Achievements -------------- Whoosh! Challenges ------------ None Game ------ Seed TechLargeDevice Manual? 0 Play Time 04:42:23 Cumulative 358.8 hours Start 2025.05.22 @ 15:55:01 End 2025.05.22 @ 21:08:52 Sessions 3 Manual Loads 0 Difficulty Rogue Special Mode None Game No. 189 Rogue 189 Adventurer 0 Explorer 0 Win Type - Total 4 Types 4/0/0/0/0/0/0/0/0/0 Lore% 57 Gallery% 65 Achievement% 61 Wizard Run 0 Options --------- Layout 0 ASCII 0 Keyboard 1 Movement Vi Keybinds 0 Fullscreen 2 Font 18/SmallcapsGlow Map View 76x50 Zoom Use 0% Tactical HUD 1 Map Filters NONE Filters NONE Steam 1 RUN: 11d8d9e3-4940-41e1-8b4a-70416942b394